bitfinex/quotes_BTCUSD_20260308
["timestamp","ask_amount","ask_price","bid_price","bid_amount"]
[1772979527281,0.00148,67322.0,67313.0,0.07487833]
[1772979527697,0.07426772,67325.0,67313.0,0.07487833]
[1772979527899,0.00148,67324.0,67313.0,0.07487833]
[1772979528073,0.00148,67323.0,67319.0,0.0002]
[1772979528308,0.00148,67323.0,67314.0,0.02696157]
[1772979528512,0.00148,67323.0,67314.0,0.02548157]
[1772979529517,0.07426772,67325.0,67314.0,0.02548157]
[1772979529736,0.07426624,67326.0,67315.0,0.07427764]
[1772979529937,0.00148,67325.0,67316.0,0.02622157]
[1772979530354,0.07426624,67326.0,67316.0,0.02622157]
[1772979530523,0.00148,67325.0,67316.0,0.02622157]
[1772979532393,0.17809268,67344.0,67316.0,0.02622157]
[1772979532394,0.00148,67324.0,67319.0,0.02622157]
[1772979532680,0.00148,67323.0,67319.0,0.02622157]
[1772979532832,0.00148,67322.0,67319.0,0.02622157]
[1772979533038,0.00148,67321.0,67319.0,0.02622157]
[1772979534088,0.07426015,67331.0,67319.0,0.02622157]
[1772979534265,0.00148,67330.0,67321.0,0.02622157]
[1772979534888,0.00148,67329.0,67321.0,0.02622157]
[1772979535086,0.07426015,67331.0,67321.0,0.02622157]
[1772979535295,0.00022001,67332.0,67321.0,0.02622157]
[1772979535516,0.00148,67330.0,67321.0,0.02622157]
[1772979535942,0.00022001,67325.0,67321.0,0.02622157]
[1772979536226,0.00148,67324.0,67322.0,0.07426992]
[1772979536445,0.00148,67324.0,67323.0,0.02622157]
[1772979536680,0.00148,67324.0,67322.0,0.07426992]
[1772979536862,0.00148,67324.0,67321.0,0.07426992]
[1772979537657,0.07447902,67332.0,67322.0,0.02622157]
[1772979537856,0.00148,67331.0,67322.0,0.02622157]
[1772979538259,0.00148,67331.0,67323.0,0.10049039]
[1772979538767,0.07574029,67331.0,67323.0,0.10049039]
[1772979538953,0.00148,67330.0,67323.0,0.10045039]
[1772979540782,0.0757413,67330.0,67323.0,0.10045039]
[1772979541662,0.07425448,67336.0,67325.0,0.01814239]
[1772979541865,0.00148,67335.0,67325.0,0.01814239]
[1772979542297,0.07425448,67336.0,67325.0,0.01814239]
[1772979542496,0.07573682,67334.0,67326.0,0.0924079]
[1772979542708,0.07425682,67334.0,67326.0,0.0924079]
[1772979542909,0.00148,67333.0,67327.0,0.01814239]
[1772979544334,0.07425682,67334.0,67327.0,0.01814239]
[1772979544510,0.07425682,67334.0,67326.0,0.07426551]
[1772979544511,0.00148,67332.0,67329.0,0.01983688]
[1772979545018,0.00148,67331.0,67329.0,0.01983688]
[1772979545462,0.07425682,67334.0,67329.0,0.01983688]
[1772979545637,0.00148,67330.0,67329.0,0.01983688]
[1772979546407,0.07425448,67336.0,67329.0,0.0742622]
[1772979546631,0.00022001,67345.0,67330.0,0.01983688]
[1772979546803,0.00148,67343.0,67332.0,0.01983688]
[1772979547290,0.07446631,67344.0,67332.0,0.01983688]
[1772979547457,0.00148,67342.0,67332.0,0.01983688]
[1772979548019,0.0757289,67342.0,67333.0,0.07425779]
[1772979551547,0.00148,67341.0,67333.0,0.07425779]
[1772979552594,0.07425007,67340.0,67330.0,0.07426024]
[1772979552809,0.29205762,67340.0,67330.0,0.07426024]
[1772979555334,0.07572993,67341.0,67330.0,0.07426024]
[1772979555534,0.00022001,67343.0,67330.0,0.21681163]
[1772979555727,0.00022001,67343.0,67328.0,0.0742611]
[1772979555728,0.21802756,67357.0,67333.0,0.02003458]
[1772979555981,0.00022001,67355.0,67340.0,0.02003458]
[1772979556129,0.00148,67348.0,67344.0,0.02003458]
[1772979556336,0.07445372,67355.0,67345.0,0.02003458]
[1772979556518,0.00148,67347.0,67345.0,0.02003458]
[1772979556718,0.00148,67346.0,67345.0,0.02003458]
[1772979556915,0.07423613,67353.0,67346.0,0.09427803]
[1772979557120,0.00148,67351.0,67347.0,0.02003458]
[1772979557316,0.00148,67350.0,67346.0,0.0003987]
[1772979557520,0.00148,67350.0,67343.0,0.0742464]
[1772979557842,0.00187701,67350.0,67343.0,0.0742464]
[1772979559129,0.2922595,67357.0,67343.0,0.0742464]
[1772979559130,0.00022001,67365.0,67345.0,0.02003458]
[1772979559333,0.0004,67375.0,67347.0,0.02003458]
[1772979559754,0.00022001,67383.0,67374.0,0.007733]
[1772979559966,0.00022001,67383.0,67374.0,0.02776758]
[1772979559967,0.00148,67379.0,67374.0,0.02776758]
[1772979560171,0.00022001,67383.0,67376.0,0.02003458]
[1772979560337,0.00148,67382.0,67376.0,0.02003458]
[1772979560546,0.00148,67382.0,67374.0,0.007733]
[1772979560943,0.00148,67381.0,67376.0,0.0742104]
[1772979561146,0.00022001,67383.0,67376.0,0.0742104]
[1772979561147,0.00148,67380.0,67376.0,0.09424498]
[1772979561345,0.01949952,67379.0,67369.0,0.07421811]
[1772979561541,0.01949952,67379.0,67369.0,0.07430678]
[1772979561740,0.07442347,67383.0,67369.0,0.07430678]
[1772979561741,0.00148,67378.0,67369.0,0.09434136]
[1772979561883,0.00148,67378.0,67369.0,8.867e-05]
[1772979562088,0.00148,67378.0,67347.0,0.29427983]
[1772979562089,0.21780755,67376.0,67361.0,0.07422634]
[1772979562343,0.01949952,67375.0,67361.0,0.07432645]
[1772979562498,0.01949952,67375.0,67362.0,0.02003458]
[1772979563525,0.01949952,67375.0,67358.0,0.07422692]
[1772979563526,0.01949952,67372.0,67357.0,0.07423126]
[1772979563843,0.01949952,67372.0,67357.0,0.07435002]
[1772979564046,0.01949952,67372.0,67358.0,0.02003458]
[1772979565300,0.0756926,67374.0,67358.0,0.02003458]
[1772979565700,0.09519212,67374.0,67359.0,0.09426371]
[1772979567289,0.09519212,67374.0,67360.0,0.02003458]
[1772979567513,0.00148,67373.0,67360.0,0.02003458]
[1772979568292,0.07569463,67373.0,67361.0,0.07422692]
[1772979568719,0.07421463,67373.0,67361.0,0.07422692]
[1772979568935,0.00148,67372.0,67361.0,0.07422692]
[1772979571337,0.07569487,67372.0,67361.0,0.07422692]
[1772979571578,0.01949952,67368.0,67359.0,0.07422913]
[1772979572859,0.0937198,67368.0,67357.0,0.00011876]
[1772979573478,0.07422028,67368.0,67357.0,0.00011876]
[1772979573687,0.01949952,67367.0,67357.0,0.00011876]
[1772979573872,0.00148,67366.0,67357.0,0.00011876]
[1772979575091,0.07422251,67365.0,67357.0,0.00011876]
[1772979575291,0.22218131,67364.0,67356.0,0.07423243]
[1772979575443,0.01949952,67363.0,67356.0,0.07423243]
[1772979576096,0.01945952,67363.0,67356.0,0.07423243]
[1772979576309,9.438e-05,67364.0,67356.0,0.07423243]
[1772979577406,9.438e-05,67364.0,67354.0,0.07423243]
[1772979578462,9.438e-05,67364.0,67353.0,0.07423243]
[1772979579721,0.074318,67364.0,67353.0,0.07423243]
[1772979581101,9.438e-05,67364.0,67356.0,0.0002]
[1772979583080,0.07458206,67375.0,67358.0,0.02376018]
[1772979583200,0.00148,67374.0,67360.0,0.02376018]
[1772979583765,0.07458206,67375.0,67362.0,0.02376018]
[1772979583766,0.00148,67373.0,67362.0,0.02376018]
[1772979584176,0.07458206,67375.0,67361.0,0.07422692]
[1772979584351,0.00148,67372.0,67361.0,0.07422692]
[1772979585541,0.02517269,67374.0,67361.0,0.07422692]
[1772979585767,0.02517269,67374.0,67360.0,0.07422692]
[1772979585768,0.00148,67373.0,67360.0,0.0979871]
[1772979586125,0.09938627,67374.0,67360.0,0.0979871]
[1772979586326,0.00148,67372.0,67360.0,0.07422692]
[1772979586530,0.00148,67372.0,67361.0,0.02376018]
[1772979586727,0.00148,67371.0,67361.0,0.02376018]
[1772979587125,0.09938627,67374.0,67361.0,0.02376018]
[1772979587442,0.00148,67370.0,67361.0,0.02376018]
[1772979587785,0.00148,67369.0,67362.0,0.07422582]
[1772979588170,0.00148,67368.0,67362.0,0.07422582]
[1772979588580,0.00022001,67372.0,67362.0,0.07422582]
[1772979588749,0.00148,67371.0,67362.0,0.07422582]
[1772979589159,0.00148,67370.0,67363.0,0.02376018]
[1772979589387,0.00022001,67372.0,67363.0,0.02376018]
[1772979589586,0.00148,67371.0,67363.0,0.02376018]
[1772979589997,0.00148,67371.0,67364.0,0.07422362]
[1772979590199,0.00148,67371.0,67364.0,0.0979838]
[1772979590403,0.00148,67370.0,67364.0,0.0979838]
[1772979590780,0.00022001,67372.0,67364.0,0.0979838]
[1772979590988,0.00148,67371.0,67364.0,0.0979838]
[1772979591431,0.00148,67370.0,67364.0,0.0979838]
[1772979591806,0.00018002,67379.0,67368.0,0.20408935]
[1772979592000,0.00018002,67379.0,67369.0,0.02376018]
[1772979592001,0.00148,67378.0,67369.0,0.02376018]
[1772979592272,0.00018002,67379.0,67370.0,0.07421701]
[1772979592483,0.00148,67378.0,67370.0,0.07421701]
[1772979594300,0.00022001,67387.0,67371.0,0.02376018]
[1772979594593,0.00148,67386.0,67373.0,0.02376018]
[1772979594767,0.00148,67385.0,67373.0,0.02376018]
[1772979595349,0.02517269,67383.0,67366.0,0.24901782]
[1772979595556,0.20268179,67380.0,67366.0,0.0742213]
[1772979595796,0.02517269,67377.0,67366.0,0.0742213]
[1772979595996,0.02517269,67375.0,67366.0,0.0742213]
[1772979596197,0.09938718,67373.0,67362.0,0.07422582]
[1772979597268,0.09938718,67373.0,67362.0,0.07442582]
[1772979598215,0.02517269,67373.0,67362.0,0.07442582]
[1772979598845,0.00170001,67374.0,67362.0,0.07442582]
[1772979599618,0.00170001,67374.0,67360.0,0.07422582]
[1772979599619,0.20268179,67373.0,67360.0,0.07422802]
[1772979599877,0.07591297,67374.0,67360.0,0.07422802]
[1772979599878,0.02517269,67371.0,67360.0,0.07422802]
[1772979600025,0.02517269,67370.0,67360.0,0.07422802]
[1772979600865,0.20268179,67366.0,67350.0,0.0006]
[1772979601063,0.20268179,67366.0,67347.0,0.0002662]
[1772979601064,0.02517269,67363.0,67347.0,0.0002662]
[1772979601266,0.00148,67365.0,67343.0,0.0002]
[1772979601267,0.02502156,67359.0,67343.0,0.0002]
[1772979601470,0.00148,67365.0,67343.0,0.07484365]
[1772979601471,0.20268179,67365.0,67343.0,0.07484365]
[1772979601783,0.02517269,67368.0,67345.0,0.20408935]
[1772979601983,0.00148,67364.0,67347.0,0.02376018]
[1772979602143,0.02517269,67363.0,67347.0,0.02376018]
[1772979602341,0.00148,67362.0,67347.0,0.02376018]
[1772979602573,0.00148,67362.0,67348.0,0.02376018]
[1772979602731,0.07422692,67361.0,67349.0,0.07424015]
[1772979602933,0.00148,67360.0,67349.0,0.07424015]
[1772979604560,0.02517269,67363.0,67349.0,0.07424015]
[1772979604892,0.02517269,67363.0,67353.0,0.03049854]
[1772979604893,0.00148,67362.0,67353.0,0.03049854]
[1772979605090,0.07570629,67362.0,67352.0,0.07423684]
[1772979605297,0.10509429,67362.0,67352.0,0.07423684]
[1772979606282,0.00148,67361.0,67352.0,0.07423684]
[1772979607502,0.07555583,67361.0,67352.0,0.07423684]
[1772979607708,0.00132886,67361.0,67352.0,0.07423684]
[1772979608176,0.07422424,67364.0,67352.0,0.07423684]
[1772979608311,0.10361022,67366.0,67352.0,0.07423684]
[1772979608512,0.00148,67365.0,67352.0,0.07423684]
[1772979608933,0.10361022,67366.0,67352.0,0.07423684]
[1772979609143,0.00148,67365.0,67352.0,0.07423684]
[1772979609544,0.00148,67364.0,67352.0,0.07423684]
[1772979609973,0.10361022,67366.0,67352.0,0.07423684]
[1772979610189,0.00148,67365.0,67352.0,0.07423684]
[1772979610580,0.00148,67364.0,67352.0,0.07423684]
[1772979611028,0.10332213,67366.0,67352.0,0.07423684]
[1772979611216,0.03057991,67363.0,67352.0,0.07423684]
[1772979611989,0.02909991,67361.0,67349.0,0.00016]
[1772979612791,0.00148,67360.0,67351.0,0.19419714]
[1772979612993,0.00148,67360.0,67354.0,0.03092386]
[1772979613197,0.00148,67360.0,67356.0,0.03092386]
[1772979613613,0.07422003,67368.0,67356.0,0.03092386]
[1772979613937,0.00148,67366.0,67356.0,0.03092386]
[1772979614110,0.07422003,67368.0,67357.0,0.07423133]
[1772979614315,0.00132889,67365.0,67357.0,0.07423133]
[1772979614714,0.07422003,67368.0,67355.0,0.07423258]
[1772979614715,0.02909991,67363.0,67355.0,0.07423258]
[1772979614916,0.02909991,67363.0,67356.0,0.07423243]
[1772979617756,0.1033252,67363.0,67352.0,0.0002]
[1772979621135,0.10354521,67363.0,67352.0,0.0002]
[1772979622191,0.07422213,67366.0,67354.0,0.19419714]
[1772979622390,0.00148,67365.0,67355.0,0.19419714]
[1772979622717,0.00148,67365.0,67356.0,0.03092386]
[1772979623925,0.07422362,67364.0,67357.0,0.07423133]
[1772979624136,0.00148,67363.0,67357.0,0.07423133]
[1772979624550,0.07422262,67365.0,67357.0,0.07423133]
[1772979624697,0.00148,67362.0,67357.0,0.10515519]
[1772979626502,0.07422288,67365.0,67357.0,0.10515519]
[1772979626702,0.00148,67364.0,67357.0,0.10515519]
[1772979627246,0.00148,67363.0,67357.0,0.10515519]
[1772979627619,0.00148,67362.0,67357.0,0.10515519]
[1772979628025,0.07422432,67364.0,67357.0,0.10515519]
[1772979628229,0.00148,67363.0,67357.0,0.10515519]
[1772979628774,0.00148,67362.0,67357.0,0.07423133]
[1772979630001,0.00170001,67362.0,67355.0,0.07423133]
[1772979631893,0.02954222,67369.0,67355.0,0.07423133]
[1772979631894,0.00018001,67374.0,67360.0,0.19419714]
[1772979632093,0.00018001,67374.0,67359.0,0.07422913]
[1772979632094,0.00148,67373.0,67359.0,0.07422913]
[1772979632294,0.1942758,67369.0,67351.0,0.07423773]
[1772979632577,0.02909991,67364.0,67351.0,0.07423705]
[1772979632814,0.04897278,67370.0,67345.0,0.0002]
[1772979632815,0.02909991,67360.0,67345.0,0.0002]
[1772979633016,0.02909991,67360.0,67343.0,0.00059701]
[1772979633017,0.20179307,67357.0,67341.0,0.07460682]
[1772979633193,0.20179307,67353.0,67341.0,0.0003581]
[1772979633375,0.20179307,67351.0,67341.0,0.0003581]
[1772979633579,0.02909991,67349.0,67341.0,0.07460637]
[1772979633777,0.00148,67348.0,67341.0,0.07460637]
[1772979634210,0.07572146,67348.0,67341.0,0.07460637]
[1772979634891,0.10482137,67348.0,67341.0,0.0003581]
[1772979635107,0.02909991,67347.0,67341.0,0.0003581]
[1772979635535,0.02909991,67347.0,67341.0,0.07460704]
[1772979635757,0.07572146,67348.0,67341.0,0.07460704]
[1772979635957,0.07572146,67348.0,67338.0,0.0002]
[1772979635958,0.02909991,67347.0,67338.0,0.0002]
[1772979636355,0.10334336,67346.0,67338.0,0.0002]
[1772979638172,0.10334336,67346.0,67341.0,0.0002]
[1772979638851,0.03235935,67345.0,67338.0,0.0002]
[1772979640947,0.10660407,67345.0,67338.0,0.0002]
[1772979643048,0.03235935,67344.0,67338.0,0.0002]
[1772979643229,0.03235935,67343.0,67334.0,0.0002]
[1772979643433,0.03235935,67341.0,67330.0,0.07425999]
[1772979644051,0.23415242,67341.0,67330.0,0.07425999]
[1772979644374,0.00148,67342.0,67329.0,0.0004081]
[1772979644375,0.03235935,67337.0,67329.0,0.0004081]
[1772979644533,0.20179307,67334.0,67325.0,0.07466652]
[1772979644875,0.20179307,67334.0,67325.0,0.07466619]
[1772979644876,0.10661824,67332.0,67325.0,0.07466619]
[1772979645033,0.03235935,67332.0,67325.0,0.07466619]
[1772979645242,0.00148,67331.0,67327.0,0.03374239]
[1772979645452,0.00148,67331.0,67325.0,0.07466619]
[1772979645649,0.00187739,67331.0,67325.0,0.07466619]
[1772979647009,0.00187739,67331.0,67325.0,0.10840858]
[1772979647680,0.00039739,67331.0,67325.0,0.07466634]
[1772979648840,0.00039739,67331.0,67322.0,0.00575]
[1772979648841,0.03235935,67329.0,67322.0,0.00447]
[1772979648953,0.03235935,67329.0,67319.0,0.07427268]
[1772979648954,0.03235935,67327.0,67319.0,0.07427268]
[1772979649170,0.03383935,67326.0,67319.0,0.07427268]
[1772979649924,0.00148,67326.0,67319.0,0.07427268]
[1772979652407,0.07426661,67325.0,67320.0,0.00012]
[1772979652611,0.07411549,67325.0,67320.0,0.00012]
[1772979654590,0.07411549,67325.0,67318.0,0.0001537]
[1772979654950,0.00148,67324.0,67319.0,0.03374239]
[1772979655755,0.00148,67324.0,67318.0,0.0001537]
[1772979660235,0.00148,67324.0,67319.0,0.07427323]
[1772979660409,0.00148,67324.0,67319.0,0.06927323]
[1772979660613,0.07574796,67324.0,67319.0,0.06927323]
[1772979660822,0.00148,67324.0,67319.0,0.10301562]
[1772979661030,0.00039739,67331.0,67321.0,0.19290879]
[1772979661031,0.00148,67326.0,67321.0,0.19290879]
[1772979661207,0.00148,67328.0,67320.0,0.03374239]
[1772979662190,0.00148,67328.0,67321.0,0.07427102]
[1772979662385,0.00148,67328.0,67321.0,0.10801341]
[1772979665431,0.00148,67328.0,67321.0,0.07427102]
[1772979666737,0.07426441,67327.0,67318.0,0.0003537]
[1772979666941,0.07426441,67327.0,67305.0,0.07428862]
[1772979666942,0.03789386,67324.0,67305.0,0.07428862]
[1772979667303,0.03789386,67320.0,67306.0,0.07448707]
[1772979667444,0.03789386,67318.0,67306.0,0.07448707]
[1772979667644,0.03789386,67316.0,67306.0,0.0002]
[1772979667855,0.03789386,67314.0,67306.0,0.0002]
[1772979668053,0.00148,67313.0,67304.0,0.0002]
[1772979668276,0.03789386,67312.0,67302.0,0.0002926]
[1772979668849,0.07428206,67311.0,67302.0,0.07458452]
[1772979669114,0.03462737,67309.0,67290.0,0.0743051]
[1772979669317,0.22864997,67307.0,67290.0,0.0743051]
[1772979669519,0.00148,67306.0,67291.0,0.03502451]
[1772979669807,0.03610737,67306.0,67291.0,0.03502451]
[1772979669940,0.03462737,67305.0,67291.0,0.03502451]
[1772979670386,0.03502451,67305.0,67291.0,0.03502451]
[1772979671002,0.10891715,67304.0,67292.0,0.07430303]
[1772979671561,0.10891715,67304.0,67290.0,0.07430485]
[1772979671562,0.03462737,67303.0,67290.0,0.07430485]
[1772979671781,0.1940226,67301.0,67286.0,0.07460218]
[1772979671981,0.03610737,67300.0,67286.0,0.07460218]
[1772979672337,0.1955026,67300.0,67286.0,0.07460218]
[1772979672484,0.03462737,67299.0,67286.0,0.07460218]
[1772979672689,0.00039714,67305.0,67288.0,0.20422032]
[1772979672913,0.00148,67304.0,67291.0,0.07430414]
[1772979673125,0.00148,67304.0,67293.0,0.03502451]
[1772979673322,0.00148,67304.0,67295.0,0.03502451]
[1772979673504,0.07428544,67308.0,67295.0,0.03502451]
[1772979673703,0.00148,67307.0,67295.0,0.03502451]
[1772979674374,0.00148,67306.0,67295.0,0.03502451]
[1772979675293,0.07424381,67310.0,67297.0,0.03502451]
[1772979675490,0.07427102,67321.0,67298.0,0.20422032]
[1772979675689,0.07427102,67321.0,67301.0,0.03502451]
[1772979675690,0.00148,67320.0,67301.0,0.03502451]
[1772979676012,0.00148,67320.0,67296.0,0.07429862]
[1772979676013,0.00148,67320.0,67303.0,0.03502451]
[1772979676430,0.00148,67319.0,67303.0,0.03502451]
[1772979676791,0.10889839,67321.0,67303.0,0.03502451]
[1772979676986,0.00148,67318.0,67303.0,0.03502451]
[1772979677194,0.00575,67322.0,67304.0,0.07428978]
[1772979677395,0.00148,67321.0,67308.0,0.03502451]
[1772979677639,0.00575,67322.0,67312.0,0.03502451]
[1772979677768,0.00575,67322.0,67305.0,0.00148]
[1772979677769,0.07448397,67328.0,67315.0,0.03502451]
[1772979677975,0.00148,67323.0,67316.0,0.03502451]
[1772979678798,0.00148,67324.0,67316.0,0.03514363]
[1772979679196,0.07448369,67328.0,67317.0,0.07427544]
[1772979679406,0.00148,67324.0,67318.0,0.03502451]
[1772979680250,0.00022001,67328.0,67318.0,0.03502451]
[1772979680459,0.00022001,67335.0,67321.0,0.20422032]
[1772979680669,0.00148,67330.0,67322.0,0.03502451]
[1772979680881,0.00022001,67335.0,67322.0,0.03502451]
[1772979681079,0.00148,67333.0,67322.0,0.03502451]
[1772979681410,0.00022001,67335.0,67322.0,0.03502451]
[1772979681411,0.00148,67332.0,67324.0,0.03502451]
[1772979681682,0.00148,67332.0,67325.0,0.03502451]
[1772979682924,0.00148,67332.0,67323.0,0.07426882]
[1772979684515,0.00170001,67332.0,67323.0,0.07426882]
[1772979685945,0.07595916,67332.0,67323.0,0.07426882]
[1772979686248,0.00170001,67332.0,67323.0,0.07426882]
[1772979688263,0.00022001,67332.0,67323.0,0.10929333]
[1772979688413,0.00148,67331.0,67323.0,0.10929333]
[1772979692764,0.00170001,67331.0,67323.0,0.10929333]
[1772979694338,0.00022001,67331.0,67324.0,0.03502451]
[1772979694541,0.00170001,67331.0,67325.0,0.07426661]
[1772979696069,0.00148,67334.0,67326.0,0.03502451]
[1772979696362,0.00148,67334.0,67327.0,0.03502451]
[1772979696572,0.00022001,67335.0,67329.0,0.03502451]
[1772979696769,0.00148,67334.0,67329.0,0.03502451]
[1772979699079,0.00148,67334.0,67329.0,0.10928577]
[1772979701379,0.07573721,67334.0,67329.0,0.10928662]
[1772979701579,0.00148,67334.0,67329.0,0.10928662]
[1772979702290,0.00148,67334.0,67329.0,0.07426211]
[1772979702493,0.07999094,67349.0,67331.0,0.1883292]
[1772979702693,0.00575,67349.0,67331.0,0.1883292]
[1772979702869,0.00148,67347.0,67334.0,0.03141083]
[1772979703075,0.00575,67349.0,67338.0,0.07425227]
[1772979703278,0.00148,67347.0,67339.0,0.03141083]
[1772979703477,0.00575,67349.0,67339.0,0.03141083]
[1772979703674,0.00148,67347.0,67339.0,0.03141083]
[1772979703874,0.00575,67349.0,67339.0,0.03141083]
[1772979704077,0.00148,67347.0,67339.0,0.03141083]
[1772979704281,0.00148,67347.0,67339.0,0.03152995]
[1772979704710,0.07423563,67354.0,67339.0,0.03152995]
[1772979704711,0.07422027,67368.0,67341.0,0.1883292]
[1772979704886,0.00148,67361.0,67345.0,0.1883292]
[1772979705240,0.00148,67361.0,67350.0,0.03099903]
[1772979705843,0.07570743,67361.0,67350.0,0.03099903]
[1772979706834,0.00148,67361.0,67350.0,0.03099903]
[1772979707244,0.00022001,67363.0,67353.0,0.1883292]
[1772979707446,0.00170001,67363.0,67354.0,0.1883292]
[1772979707748,0.00022001,67363.0,67355.0,0.03060427]
[1772979708532,0.07591759,67370.0,67359.0,0.03048723]
[1772979708977,0.07443759,67370.0,67359.0,0.03048723]
[1772979709283,0.00022001,67361.0,67360.0,0.10471525]
[1772979709405,0.00022001,67368.0,67360.0,0.07422802]
[1772979709635,0.00022001,67368.0,67360.0,0.10471525]
[1772979710466,0.00022001,67368.0,67360.0,0.10483437]
[1772979710716,0.19500262,67368.0,67355.0,0.001]
[1772979710874,0.19500262,67368.0,67355.0,0.00011912]
[1772979711216,0.07422031,67367.0,67355.0,0.00011912]
[1772979711402,0.07422031,67367.0,67356.0,0.03009961]
[1772979711644,0.00148,67366.0,67356.0,0.03009961]
[1772979712106,0.07422031,67367.0,67356.0,0.03009961]
[1772979712350,0.00148,67366.0,67356.0,0.03009961]
[1772979713323,0.07422251,67365.0,67357.0,0.07423133]
[1772979713548,0.00148,67366.0,67357.0,0.07423133]
[1772979713759,0.00018001,67374.0,67360.0,0.03007494]
[1772979713970,0.00018001,67374.0,67364.0,0.03007494]
[1772979714090,0.00018001,67374.0,67366.0,0.03007494]
[1772979714298,0.00022001,67377.0,67360.0,0.03007494]
[1772979714498,0.00022001,67377.0,67363.0,0.1883292]
[1772979714714,0.00148,67379.0,67366.0,0.03007494]
[1772979714923,0.00148,67379.0,67357.0,0.07423133]
[1772979714924,0.00148,67379.0,67369.0,0.03007494]
[1772979715132,0.00148,67379.0,67370.0,0.03007494]
[1772979715336,0.00148,67380.0,67372.0,0.02990873]
[1772979715794,0.0743436,67392.0,67371.0,0.0742159]
[1772979715795,0.07434298,67392.0,67375.0,0.1883292]
[1772979716003,0.07434298,67392.0,67378.0,0.03007494]
[1772979716214,0.00015,67392.0,67378.0,0.03007494]
[1772979716415,0.00015,67392.0,67380.0,0.03007494]
[1772979716627,0.00148,67391.0,67380.0,0.03007494]
[1772979716886,0.00015,67392.0,67380.0,0.03007494]
[1772979717112,0.00015,67392.0,67379.0,0.00148]
[1772979717113,0.00039795,67392.0,67383.0,0.1883292]
[1772979717315,0.00148,67394.0,67385.0,0.07420048]
[1772979717316,0.07567125,67394.0,67385.0,0.07420048]
[1772979717512,0.07567125,67394.0,67385.0,0.07459843]
[1772979718354,0.07567125,67394.0,67380.0,0.0742051]
[1772979718560,0.19478261,67393.0,67373.0,0.10428864]
[1772979719028,0.19478261,67393.0,67368.0,0.00148]
[1772979719327,0.19478261,67391.0,67369.0,0.07421811]
[1772979719577,0.19478261,67391.0,67368.0,0.10429405]
[1772979719738,0.19478261,67391.0,67368.0,0.03007494]
[1772979719948,0.19478261,67391.0,67368.0,0.10429398]
[1772979720779,0.19478261,67389.0,67358.0,0.03007494]
[1772979720956,0.19478261,67387.0,67358.0,0.03007494]
[1772979721383,0.07419938,67386.0,67359.0,0.07422913]
[1772979721544,0.19478261,67385.0,67360.0,0.03007494]
[1772979722242,0.07419938,67389.0,67359.0,0.07422913]
[1772979722243,0.0012,67400.0,67362.0,0.03007494]
[1772979722453,0.0012,67400.0,67359.0,0.07422913]
[1772979722454,0.00148,67396.0,67366.0,0.03007494]
[1772979722655,0.00148,67396.0,67369.0,0.20802801]
[1772979722857,0.00148,67396.0,67372.0,0.03007494]
[1772979723012,0.00148,67396.0,67376.0,0.03007494]
[1772979723209,0.00148,67396.0,67380.0,0.20802801]
[1772979723410,0.00148,67396.0,67383.0,0.03007494]
[1772979723615,0.07566868,67396.0,67383.0,0.03007494]
[1772979724029,0.26765794,67393.0,67381.0,0.07420379]
[1772979724228,0.00022001,67391.0,67381.0,0.07420379]
[1772979725295,0.00148,67390.0,67375.0,0.075691]
[1772979725505,0.07419718,67388.0,67375.0,0.07569057]
[1772979725781,0.27222385,67388.0,67375.0,0.07421057]
[1772979726139,0.07419718,67388.0,67375.0,0.07421057]
[1772979726340,0.19802667,67387.0,67375.0,0.07421057]
[1772979726789,0.00148,67386.0,67375.0,0.07421057]
[1772979727007,0.00148,67386.0,67375.0,0.11156548]
[1772979727500,0.07420048,67385.0,67375.0,0.11156548]
[1772979727688,0.07420048,67385.0,67375.0,0.07421057]
[1772979727893,0.27222715,67385.0,67375.0,0.07421057]
[1772979728291,0.27222715,67385.0,67373.0,0.08053532]
[1772979728292,0.07420048,67385.0,67373.0,0.08053532]
[1772979728540,0.19802667,67384.0,67373.0,0.00632272]
[1772979728665,0.19802667,67384.0,67373.0,0.08053607]
[1772979728869,0.19802667,67384.0,67373.0,0.080536]
[1772979729107,0.00148,67383.0,67373.0,0.080536]
[1772979729283,0.00148,67383.0,67374.0,0.03735491]
[1772979729619,0.07420489,67381.0,67373.0,0.07421328]
[1772979729814,0.06920237,67381.0,67373.0,0.07421328]
[1772979730040,0.07568393,67382.0,67373.0,0.07421328]
[1772979730600,0.2737106,67382.0,67371.0,0.0742137]
[1772979730805,0.07568393,67382.0,67371.0,0.0742137]
[1772979731124,0.07568393,67382.0,67371.0,0.11156861]
[1772979731361,0.07568393,67382.0,67372.0,0.03735491]
[1772979731692,0.07568393,67382.0,67374.0,0.0002]
[1772979732515,0.07568393,67382.0,67369.0,0.00148]
[1772979732516,0.19802667,67381.0,67362.0,0.03735491]
[1772979732741,0.19802667,67381.0,67364.0,0.07422345]
[1772979732912,0.07568393,67382.0,67365.0,0.03735491]
[1772979733093,0.07420393,67382.0,67365.0,0.03735491]
[1772979733301,0.00148,67381.0,67365.0,0.03735491]
[1772979734293,0.07420599,67380.0,67367.0,0.03735491]
[1772979735324,0.00148,67379.0,67367.0,0.03735491]
[1772979736593,0.00148,67378.0,67368.0,0.07421921]
[1772979736975,0.00148,67378.0,67365.0,0.1115767]
[1772979737375,0.00148,67378.0,67366.0,0.03735491]
[1772979737763,0.19802667,67377.0,67365.0,0.07422179]
[1772979738607,0.19802667,67377.0,67367.0,0.0002]
[1772979738784,0.0742104,67376.0,67367.0,0.0002]
[1772979738986,0.19802667,67375.0,67363.0,0.07422251]
[1772979739704,0.19802667,67375.0,67363.0,0.11157742]
[1772979740889,0.0742104,67376.0,67364.0,0.03735491]
[1772979741895,0.19802667,67375.0,67363.0,0.07422251]
[1772979742089,0.19802667,67375.0,67362.0,0.07422582]
[1772979742394,0.0742104,67376.0,67363.0,0.03193613]
[1772979742593,0.0733123,67376.0,67363.0,0.03193613]
[1772979742796,0.0733123,67376.0,67364.0,0.07422362]
[1772979742993,0.0733123,67376.0,67364.0,0.10615975]
[1772979743400,0.0733123,67376.0,67365.0,0.03193613]
[1772979743994,0.00148,67376.0,67365.0,0.03193613]
[1772979744840,0.0742115,67375.0,67366.0,0.07422141]
[1772979745044,0.0742115,67375.0,67366.0,0.10615754]
[1772979746940,0.0681573,67375.0,67366.0,0.10615754]
[1772979748010,0.0681573,67375.0,67365.0,0.07422141]
[1772979748011,0.0681573,67375.0,67364.0,0.0002]
[1772979748361,0.19802667,67374.0,67365.0,0.07422141]
[1772979748796,0.19802667,67374.0,67362.0,0.07422582]
[1772979748997,0.0742133,67374.0,67363.0,0.03193613]
[1772979749153,0.00148,67373.0,67363.0,0.03193613]
[1772979750374,0.00187771,67373.0,67363.0,0.03193613]
[1772979751252,0.0742148,67372.0,67364.0,0.07422362]
[1772979751454,0.07358921,67372.0,67364.0,0.07422362]